fUSD/lending_fUSD_20240907
["ID","MTS","AMOUNT","RATE_DAILY","PERIOD"]
[337505385,1725724249432,-500.0,0.00014794,2]
[337505386,1725724249442,-373.89938736,0.00014794,2]
[337505387,1725724249455,-2474.85061264,0.00014794,2]
[337505388,1725724249465,-500.0,0.00014794,2]
[337505389,1725724249478,-2848.75,0.00014794,2]
[337505390,1725724249488,-500.0,0.00014794,2]
[337505391,1725724249498,-2848.75,0.00014794,2]
[337505392,1725724249508,-500.0,0.00014794,2]
[337505393,1725724249519,-2848.75,0.00014794,2]
[337505394,1725724249529,-500.0,0.00014794,2]
[337505395,1725724249538,-2848.75,0.00014794,2]
[337505396,1725724249548,-500.0,0.00014794,2]
[337505397,1725724249558,-500.0,0.00014794,2]
[337505398,1725724249568,-2848.75,0.00014794,2]
[337505399,1725724249577,-500.0,0.00014794,2]
[337505400,1725724249587,-2848.75,0.00014794,2]
[337505401,1725724249598,-500.0,0.00014794,2]
[337505402,1725724249614,-500.0,0.00014794,2]
[337505403,1725724249624,-2848.75,0.00014794,2]
[337505404,1725724249634,-500.0,0.00014794,2]
[337505405,1725724249643,-2848.75,0.00014794,2]
[337505406,1725724249654,-500.0,0.00014794,2]
[337505407,1725724249663,-2848.75,0.00014794,2]
[337505408,1725724249673,-500.0,0.00014794,2]
[337505409,1725724249684,-505.2401614,0.00014794,2]
[337505410,1725724249694,-501.41058957,0.00014794,2]
[337505411,1725724249704,-594.21235179,0.00014794,2]
[337505412,1725724249717,-307.39937229,0.00014794,2]
[337505413,1725724249727,-505.46668026,0.00014794,2]
[337505414,1725724249737,-500.0,0.00014794,2]
[337505415,1725724249747,-500.0,0.00014794,2]
[337505416,1725724249756,-500.0,0.00014794,2]
[337505417,1725724249766,-500.0,0.00014794,2]
[337505418,1725724249775,-1010.98078481,0.00014794,2]
[337505419,1725724249785,-182.8,0.00014794,2]
[337505420,1725724249794,-509.06053883,0.00014794,2]
[337505421,1725724249804,-500.0,0.00014794,2]
[337505422,1725724249814,-500.0,0.00014794,2]
[337505423,1725724249824,-500.99519801,0.00014794,2]
[337505424,1725724249834,-561.37027387,0.00014794,2]
[337505425,1725724249844,-507.74783076,0.00014794,2]
[337505426,1725724249861,-1089.69,0.00014794,2]
[337505427,1725724249871,-1089.69,0.00014794,2]
[337505428,1725724249881,-1089.69,0.00014794,2]
[337505429,1725724249891,-1089.69,0.00014794,2]
[337505430,1725724249901,-1089.69,0.00014794,2]
[337505431,1725724249911,-545.20304825,0.00014794,2]
[337505432,1725724249921,-1089.69,0.00014794,2]
[337505433,1725724249930,-1089.69,0.00014794,2]
[337505434,1725724249940,-1089.69,0.00014794,2]
[337505435,1725724249950,-1089.69,0.00014794,2]
[337505436,1725724249960,-1089.69,0.00014794,2]
[337505437,1725724249970,-1089.69,0.00014794,2]
[337505438,1725724249979,-1089.69,0.00014794,2]
[337505439,1725724249989,-288.39251534,0.00014794,2]
[337505440,1725724249998,-500.0,0.00014794,2]
[337505441,1725724250008,-500.0,0.00014794,2]
[337505442,1725724250018,-500.0,0.00014794,2]
[337505443,1725724250027,-500.0,0.00014794,2]
[337505444,1725724250037,-500.0,0.00014794,2]
[337505445,1725724250047,-500.0,0.00014794,2]
[337505446,1725724250056,-616.78,0.00014794,2]
[337505447,1725724250066,-500.0,0.00014794,2]
[337505448,1725724250076,-500.0,0.00014794,2]
[337505449,1725724250085,-500.73982162,0.00014794,2]
[337505450,1725724250095,-500.0,0.00014794,2]
[337505451,1725724250105,-500.0,0.00014794,2]
[337505452,1725724250114,-500.0,0.00014794,2]
[337505453,1725724250124,-500.0,0.00014794,2]
[337505454,1725724250134,-246.21,0.00014794,2]
[337505455,1725724250144,-500.0,0.00014794,2]
[337505456,1725724250153,-500.0,0.00014794,2]
[337505457,1725724250162,-230.6,0.00014794,2]
[337505458,1725724250173,-500.0,0.00014794,2]
[337505459,1725724250182,-500.0,0.00014794,2]
[337505460,1725724250192,-500.0,0.00014794,2]
[337505461,1725724250201,-500.0,0.00014794,2]
[337505462,1725724250210,-500.0,0.00014794,2]
[337505463,1725724250220,-500.0,0.00014794,2]
[337505464,1725724250232,-500.0,0.00014794,2]
[337505465,1725724250242,-500.0,0.00014794,2]
[337505466,1725724250251,-500.0,0.00014794,2]
[337505467,1725724250261,-500.0,0.00014794,2]
[337505468,1725724250270,-500.0,0.00014794,2]
[337505469,1725724250279,-500.0,0.00014794,2]
[337505470,1725724250288,-500.0,0.00014794,2]
[337505471,1725724250300,-208.78,0.00014794,2]
[337505472,1725724250309,-500.0,0.00014794,2]
[337505473,1725724250319,-500.0,0.00014794,2]
[337505474,1725724250329,-500.55547139,0.00014794,2]
[337505475,1725724250339,-500.0,0.00014794,2]
[337505476,1725724250348,-500.0,0.00014794,2]
[337505477,1725724250358,-644.04985197,0.00014794,2]
[337505478,1725724250368,-500.0,0.00014794,2]
[337505479,1725724250379,-500.0,0.00014794,2]
[337505480,1725724250388,-241.00253087,0.00014794,2]
[337505481,1725724250398,-500.0,0.00014794,2]
[337505482,1725724250407,-500.0,0.00014794,2]
[337505483,1725724250416,-500.0,0.00014794,2]
[337505484,1725724250426,-500.0,0.00014794,2]
[337505485,1725724250435,-500.0,0.00014794,2]
[337505486,1725724250445,-544.6,0.00014794,2]
[337505487,1725724250457,-500.0,0.00014794,2]
[337505488,1725724250468,-56.52236633,0.00014794,2]
[337505489,1725724250488,-269.24,0.00014794,2]
[337505490,1725724250501,-218.83763367,0.00014794,2]
[337505491,1725724250510,-544.6,0.00014794,2]
[337505492,1725724250520,-363.26236633,0.00014794,2]
[337505493,1725724250532,-136.73763367,0.00014794,2]
[337505494,1725724250542,-397.56673221,0.00014794,2]
[337505495,1725724264159,181.79,0.000113,2]
[337505496,1725724469796,634.65,0.00011503,2]
[337505497,1725724519455,150.0,0.00010959,2]
[337505498,1725724519481,150.0,0.00010959,2]
[337505499,1725724519504,103.89,0.00010959,2]
[337505500,1725724701763,50000.0,0.00031265,30]
[337505501,1725724705245,50000.0,0.00031265,31]
[337505502,1725724708769,50000.0,0.00031265,32]
[337505503,1725724712087,50000.0,0.00031265,33]
[337505504,1725724715514,50000.0,0.00031265,34]
[337505505,1725724723379,50000.0,0.00031265,35]
[337505506,1725724726845,50000.0,0.00031265,36]
[337505507,1725724730509,50000.0,0.00031265,37]
[337505508,1725724733734,50000.0,0.00031265,38]
[337505509,1725724737335,50000.0,0.00031265,39]
[337505510,1725724968734,150.0,0.00010863,2]
[337505511,1725724968756,150.0,0.00010863,2]
[337505512,1725724968777,150.0,0.00010863,2]
[337505513,1725724968798,150.0,0.00010863,2]
[337505514,1725724968819,17.92,0.00010863,2]
[337505515,1725724993807,1210.19,0.00025,60]
[337505516,1725725083997,-3521.32321568,0.00012701,2]
[337505517,1725725084019,-3074.3,0.00012789,2]
[337505518,1725725084040,-12439.87,0.00012802,2]
[337505519,1725725084062,-250.0,0.00012816,2]
[337505520,1725725084083,-200.0,0.00012844,2]
[337505521,1725725084105,-2000.0,0.00012844,2]
[337505522,1725725084127,-3514.50678432,0.00012872,2]
[337505523,1725725085519,-1688.63321568,0.00012872,2]
[337505524,1725725085542,-1000.0,0.00012878,2]
[337505525,1725725085565,-156.79,0.00012995,2]
[337505529,1725725231513,750.0,0.00011,2]
[337505530,1725725232629,800.0,0.00013,2]
[337505564,1725725398207,1899.22,0.00012957,2]
[337505567,1725725424159,2000.0,0.00012952,2]
[337505575,1725725431570,-156.79,0.00013027,2]
[337505576,1725725431580,-300.0,0.00013056,2]
[337505577,1725725431590,-300.0,0.00013056,2]
[337505578,1725725431603,-537.01,0.00013057,2]
[337505579,1725725431626,-23362.99,0.00013057,2]
[337505580,1725725431636,-250.0,0.00013058,2]
[337505581,1725725431646,-1852.42,0.00013058,2]
[337505582,1725725431655,-1113.38,0.00013062,2]
[337505583,1725725431665,-500.0,0.00013077,2]
[337505584,1725725431675,-250.0,0.00013078,2]
[337505585,1725725431684,-9526.78,0.00013078,2]
[337505586,1725725431694,-802.95,0.0001309,2]
[337505587,1725725431704,-3282.81,0.000131,2]
[337505588,1725725431714,-150.0,0.00013126,2]
[337505589,1725725431723,-499.99,0.00013127,2]
[337505590,1725725431732,-617.92,0.00013127,2]
[337505591,1725725431744,-1584.48,0.00013132,2]
[337505592,1725725431754,-1020.92781733,0.00013135,2]
[337505593,1725725431763,-999.99,0.00013169,2]
[337505594,1725725431774,-450.2,0.0001318,2]
[337505595,1725725431785,-150.0,0.00013488,2]
[337505596,1725725431795,-178.79,0.00013605,2]
[337505597,1725725431805,-1020.92781734,0.00013643,2]
[337505598,1725725431818,-173.71,0.00013699,2]
[337505599,1725725431828,-150.0,0.00013699,2]
[337505600,1725725431837,-179.9,0.00013699,2]
[337505601,1725725431847,-153.9,0.00013699,2]
[337505602,1725725431857,-331.41,0.00013932,2]
[337505603,1725725431866,-410.39,0.00014001,2]
[337505604,1725725431876,-150.0,0.00014059,2]
[337505605,1725725431885,-357.37,0.00014192,2]
[337505607,1725725431897,-241.38,0.00014192,2]
[337505609,1725725431906,-854.0,0.00014192,2]
[337505610,1725725431916,-255.0,0.00014229,2]
[337505612,1725725431926,-300.0,0.00014317,2]
[337505614,1725725431935,-420.0,0.00014317,2]
[337505615,1725725431946,-157.3,0.00014341,2]
[337505617,1725725431956,-150.0,0.0001442,2]
[337505619,1725725431966,-1000.0,0.00014488,2]
[337505621,1725725431975,-3000.0,0.000145,2]
[337505623,1725725431986,-282.3496,0.00014594,2]
[337505625,1725725431995,-252.1806,0.00014594,2]
[337505627,1725725432005,-787.0419,0.00014594,2]
[337505629,1725725432014,-388.79,0.00014594,2]
[337505631,1725725432024,-1578.3782,0.00014594,2]
[337505633,1725725432035,-2062.6928,0.00014594,2]
[337505635,1725725432044,-14133.0822,0.00014594,2]
[337505637,1725725432054,-3807.1454,0.00014594,2]
[337505639,1725725432063,-4551.782,0.00014594,2]
[337505641,1725725432073,-1560.2075,0.00014594,2]
[337505643,1725725432083,-7500.0,0.00014594,2]
[337505644,1725725432092,-2500.0,0.00014594,2]
[337505645,1725725432102,-421.29692535,0.00014629,2]
[337505646,1725725432112,-500.0,0.0001465,2]
[337505647,1725725432121,-500.0,0.00014693,2]
[337505648,1725725432131,-306.75684709,0.00014693,2]
[337505649,1725725432141,-500.0,0.00014693,2]
[337505650,1725725432150,-500.0,0.00014693,2]
[337505651,1725725432159,-192260.2242,0.00014694,2]
[337505652,1725725432169,-2155.8422,0.00014694,2]
[337505653,1725725432178,-2535.5939,0.00014694,2]
[337505654,1725725432187,-727.9384,0.00014694,2]
[337505655,1725725432197,-601.6341,0.00014694,2]
[337505656,1725725432207,-500.0,0.00014773,2]
[337505657,1725725432216,-1749.0,0.00014779,2]
[337505658,1725725432226,-4255.998,0.00014779,2]
[337505659,1725725432235,-1144.0,0.00014779,2]
[337505660,1725725432246,-1078.0,0.00014779,2]
[337505661,1725725432256,-150.0,0.0001478,2]
[337505662,1725725432265,-157.16,0.00014784,2]
[337505663,1725725432275,-2000.0,0.00014794,2]
[337505664,1725725432284,-200.0,0.00014794,2]
[337505665,1725725432294,-183.879101,0.00014794,2]
[337505666,1725725432303,-500.0,0.00014794,2]
[337505667,1725725432313,-500.0,0.00014794,2]
[337505668,1725725432323,-500.0,0.00014794,2]
[337505669,1725725432333,-500.0,0.00014794,2]
[337505670,1725725432342,-365.1153703,0.00014794,2]
[337505671,1725725432352,-500.0,0.00014794,2]
[337505672,1725725432362,-500.0,0.00014794,2]
[337505673,1725725432371,-500.0,0.00014794,2]
[337505674,1725725432381,-500.0,0.00014794,2]
[337505675,1725725432391,-500.0,0.00014794,2]
[337505676,1725725432401,-500.0,0.00014794,2]
[337505677,1725725432412,-645.7916423,0.00014794,2]
[337505678,1725725432421,-500.0,0.00014794,2]
[337505679,1725725432431,-500.0,0.00014794,2]
[337505680,1725725432441,-200.0,0.00014794,2]
[337505681,1725725432451,-500.0,0.00014794,2]
[337505682,1725725432461,-500.0,0.00014794,2]
[337505683,1725725432471,-500.0,0.00014794,2]
[337505684,1725725432480,-500.0,0.00014794,2]
[337505685,1725725432490,-500.0,0.00014794,2]
[337505686,1725725432500,-500.0,0.00014794,2]
[337505687,1725725432509,-500.0,0.00014794,2]
[337505688,1725725432519,-500.0,0.00014794,2]
[337505689,1725725432528,-500.0,0.00014794,2]
[337505690,1725725432537,-500.0,0.00014794,2]
[337505691,1725725432547,-500.0,0.00014794,2]
[337505692,1725725432556,-500.0,0.00014794,2]
[337505693,1725725432566,-500.0,0.00014794,2]
[337505694,1725725432575,-500.0,0.00014794,2]
[337505695,1725725432585,-500.0,0.00014794,2]
[337505696,1725725432594,-500.0,0.00014794,2]
[337505697,1725725432603,-500.0,0.00014794,2]
[337505698,1725725432612,-500.0,0.00014794,2]
[337505699,1725725432621,-255.56733497,0.00014794,2]
[337505700,1725725432631,-500.0,0.00014794,2]
[337505701,1725725432639,-500.0,0.00014794,2]
[337505702,1725725432649,-500.0,0.00014794,2]
[337505703,1725725432659,-500.0,0.00014794,2]
[337505704,1725725432668,-500.0,0.00014794,2]
[337505705,1725725432677,-663.85,0.00014794,2]
[337505706,1725725432687,-663.85,0.00014794,2]
[337505707,1725725432696,-663.85,0.00014794,2]
[337505708,1725725432706,-663.85,0.00014794,2]
[337505709,1725725432716,-663.85,0.00014794,2]
[337505710,1725725432726,-663.85,0.00014794,2]
[337505711,1725725432736,-663.85,0.00014794,2]
[337505712,1725725432746,-663.85,0.00014794,2]
[337505713,1725725432756,-663.85,0.00014794,2]
[337505714,1725725432765,-663.85,0.00014794,2]
[337505715,1725725432775,-663.85,0.00014794,2]
[337505716,1725725432784,-663.85,0.00014794,2]
[337505717,1725725432794,-663.85,0.00014794,2]
[337505718,1725725432805,-663.85,0.00014794,2]
[337505719,1725725432975,-500.0,0.00014794,2]
[337505720,1725725432984,-500.0,0.00014794,2]
[337505721,1725725432995,-500.0,0.00014794,2]
[337505722,1725725433004,-500.0,0.00014794,2]
[337505723,1725725433014,-500.0,0.00014794,2]
[337505724,1725725433024,-500.0,0.00014794,2]
[337505725,1725725433033,-337.98,0.00014794,2]
[337505726,1725725433043,-500.0,0.00014794,2]
[337505727,1725725433053,-500.0,0.00014794,2]
[337505728,1725725433062,-500.0,0.00014794,2]
[337505729,1725725433072,-500.0,0.00014794,2]
[337505730,1725725433082,-500.0,0.00014794,2]
[337505731,1725725433091,-500.0,0.00014794,2]
[337505732,1725725433101,-450.65370587,0.00014794,2]
[337505733,1725725433110,-500.0,0.00014794,2]
[337505734,1725725433120,-500.0,0.00014794,2]
[337505735,1725725433130,-500.0,0.00014794,2]
[337505736,1725725433139,-509.39954459,0.00014794,2]
[337505737,1725725433149,-506.68787596,0.00014794,2]
[337505738,1725725433158,-500.0,0.00014794,2]
[337505739,1725725433168,-500.0,0.00014794,2]
[337505740,1725725433177,-500.0,0.00014794,2]
[337505741,1725725433187,-500.0,0.00014794,2]
[337505742,1725725433197,-488.0486747,0.00014794,2]
[337505743,1725725433206,-500.0,0.00014794,2]
[337505744,1725725433217,-500.0,0.00014794,2]
[337505745,1725725433227,-500.0,0.00014794,2]
[337505746,1725725433237,-500.0,0.00014794,2]
[337505747,1725725433247,-500.0,0.00014794,2]
[337505748,1725725433256,-500.0,0.00014794,2]
[337505749,1725725433266,-500.0,0.00014794,2]
[337505750,1725725433275,-500.0,0.00014794,2]
[337505751,1725725433285,-500.0,0.00014794,2]
[337505752,1725725433295,-500.0,0.00014794,2]
[337505753,1725725433304,-500.0,0.00014794,2]
[337505754,1725725433314,-500.0,0.00014794,2]
[337505755,1725725433325,-500.0,0.00014794,2]
[337505756,1725725433334,-500.0,0.00014794,2]
[337505757,1725725433344,-500.0,0.00014794,2]
[337505758,1725725433353,-500.0,0.00014794,2]
[337505759,1725725433363,-500.0,0.00014794,2]
[337505760,1725725433372,-500.0,0.00014794,2]
[337505761,1725725433382,-500.0,0.00014794,2]
[337505762,1725725433392,-500.0,0.00014794,2]
[337505763,1725725433402,-500.0,0.00014794,2]
[337505764,1725725433411,-500.0,0.00014794,2]
[337505765,1725725433421,-500.0,0.00014794,2]
[337505766,1725725433431,-517.28169514,0.00014794,2]
[337505767,1725725433441,-500.0,0.00014794,2]
[337505768,1725725433450,-500.0,0.00014794,2]
[337505769,1725725433460,-523.96672973,0.00014794,2]
[337505770,1725725433470,-500.0,0.00014794,2]
[337505771,1725725433479,-317.70376858,0.00014794,2]
[337505772,1725725433488,-502.91629155,0.00014794,2]
[337505773,1725725433498,-500.0,0.00014794,2]
[337505774,1725725433507,-511.38806538,0.00014794,2]
[337505775,1725725433516,-505.18998397,0.00014794,2]
[337505776,1725725433525,-509.4413326,0.00014794,2]
[337505777,1725725433535,-500.0,0.00014794,2]
[337505778,1725725433543,-500.0,0.00014794,2]
[337505779,1725725433553,-500.0,0.00014794,2]
[337505780,1725725433562,-500.0,0.00014794,2]
[337505781,1725725433571,-500.0,0.00014794,2]
[337505782,1725725433581,-500.0,0.00014794,2]
[337505783,1725725433590,-500.0,0.00014794,2]
[337505784,1725725433599,-500.0,0.00014794,2]
[337505785,1725725433608,-500.0,0.00014794,2]
[337505786,1725725433617,-500.0,0.00014794,2]
[337505787,1725725433627,-358.34,0.00014794,2]
[337505788,1725725433637,-500.0,0.00014794,2]
[337505789,1725725433647,-500.0,0.00014794,2]
[337505790,1725725433656,-500.0,0.00014794,2]
[337505791,1725725433665,-500.0,0.00014794,2]
[337505792,1725725433675,-500.0,0.00014794,2]
[337505793,1725725433684,-500.0,0.00014794,2]
[337505794,1725725433694,-500.0,0.00014794,2]
[337505795,1725725433704,-168.52991926,0.00014794,2]
[337505796,1725725433714,-500.0,0.00014794,2]
[337505797,1725725433724,-500.0,0.00014794,2]
[337505798,1725725433734,-500.0,0.00014794,2]
[337505799,1725725433743,-500.0,0.00014794,2]
[337505800,1725725433753,-500.0,0.00014794,2]
[337505801,1725725433762,-500.0,0.00014794,2]
[337505802,1725725433772,-593.02,0.00014794,2]
[337505803,1725725433781,-584.88053733,0.00014794,2]
[337505804,1725725433790,-152.054705,0.00014794,2]
[337505805,1725725433799,-500.0,0.00014794,2]
[337505806,1725725433810,-500.0,0.00014794,2]
[337505807,1725725433822,-500.0,0.00014794,2]
[337505808,1725725433832,-500.0,0.00014794,2]
[337505809,1725725433841,-500.0,0.00014794,2]
[337505810,1725725433850,-500.0,0.00014794,2]
[337505811,1725725433861,-500.0,0.00014794,2]
[337505812,1725725433871,-500.0,0.00014794,2]
[337505813,1725725433880,-297.39,0.00014794,2]
[337505814,1725725433889,-345.9101869,0.00014794,2]
[337505815,1725725433900,-500.0,0.00014794,2]
[337505816,1725725433911,-500.0,0.00014794,2]
[337505817,1725725433920,-500.0,0.00014794,2]
[337505818,1725725433929,-500.0,0.00014794,2]
[337505819,1725725433939,-515.8,0.00014794,2]
[337505820,1725725433947,-500.0,0.00014794,2]
[337505821,1725725433956,-500.0,0.00014794,2]
[337505822,1725725433965,-500.0,0.00014794,2]
[337505823,1725725433974,-500.0,0.00014794,2]
[337505824,1725725433984,-500.0,0.00014794,2]
[337505825,1725725433994,-500.0,0.00014794,2]
[337505826,1725725434003,-503.3688616,0.00014794,2]
[337505827,1725725434012,-500.0,0.00014794,2]
[337505828,1725725434022,-500.0,0.00014794,2]
[337505829,1725725434032,-385.93,0.00014794,2]
[337505830,1725725434041,-500.0,0.00014794,2]
[337505831,1725725434050,-500.0,0.00014794,2]
[337505832,1725725434060,-502.3252699,0.00014794,2]
[337505833,1725725434069,-500.0,0.00014794,2]
[337505834,1725725434079,-500.0,0.00014794,2]
[337505835,1725725434088,-566.09754939,0.00014794,2]
[337505836,1725725434097,-500.0,0.00014794,2]
[337505837,1725725434106,-500.0,0.00014794,2]
[337505838,1725725434115,-518.11842619,0.00014794,2]
[337505839,1725725434124,-500.0,0.00014794,2]
[337505840,1725725434134,-500.0,0.00014794,2]
[337505841,1725725434143,-500.0,0.00014794,2]
[337505842,1725725434153,-500.0,0.00014794,2]
[337505843,1725725434162,-500.0,0.00014794,2]
[337505844,1725725434172,-500.0,0.00014794,2]
[337505845,1725725434180,-500.0,0.00014794,2]
[337505846,1725725434190,-500.0,0.00014794,2]
[337505847,1725725434199,-554.07725034,0.00014794,2]
[337505848,1725725434209,-500.0,0.00014794,2]
[337505849,1725725434218,-439.21563108,0.00014794,2]
[337505850,1725725434228,-617.1,0.00014794,2]
[337505851,1725725434237,-500.0,0.00014794,2]
[337505852,1725725434247,-317.23411328,0.00014794,2]
[337505853,1725725434256,-525.08770443,0.00014794,2]
[337505854,1725725434265,-511.92564159,0.00014794,2]
[337505855,1725725434275,-500.0,0.00014794,2]
[337505856,1725725434284,-500.0,0.00014794,2]
[337505857,1725725434294,-253.34,0.00014794,2]
[337505858,1725725434303,-500.0,0.00014794,2]
[337505859,1725725434312,-500.0,0.00014794,2]
[337505860,1725725434321,-292.51,0.00014794,2]
[337505861,1725725434331,-500.0,0.00014794,2]
[337505862,1725725434340,-420.68,0.00014794,2]
[337505863,1725725434349,-500.0,0.00014794,2]
[337505864,1725725434359,-500.0,0.00014794,2]
[337505865,1725725434368,-500.0,0.00014794,2]
[337505866,1725725434378,-500.0,0.00014794,2]
[337505867,1725725434387,-150.0,0.00014794,2]
[337505868,1725725434397,-500.0,0.00014794,2]
[337505869,1725725434406,-150.0,0.00014794,2]
[337505870,1725725434415,-500.0,0.00014794,2]
[337505871,1725725434425,-500.0,0.00014794,2]
[337505872,1725725434434,-500.0,0.00014794,2]
[337505873,1725725434444,-500.0,0.00014794,2]
[337505874,1725725434454,-190.14735193,0.00014794,2]
[337505875,1725725434464,-500.0,0.00014794,2]
[337505876,1725725434474,-500.0,0.00014794,2]
[337505877,1725725434484,-500.0,0.00014794,2]
[337505878,1725725434494,-498.62502723,0.00014794,2]
[337505879,1725725434507,-500.0,0.00014794,2]
[337505880,1725725434517,-500.0,0.00014794,2]
[337505881,1725725434527,-500.0,0.00014794,2]
[337505882,1725725434537,-384.9414113,0.00014794,2]
[337505883,1725725434546,-500.0,0.00014794,2]
[337505884,1725725434557,-500.0,0.00014794,2]
[337505885,1725725434567,-500.0,0.00014794,2]
[337505886,1725725434577,-500.0,0.00014794,2]
[337505887,1725725434586,-505.14,0.00014794,2]
[337505888,1725725434595,-500.0,0.00014794,2]
[337505889,1725725434604,-500.0,0.00014794,2]
[337505890,1725725434613,-500.0,0.00014794,2]
[337505891,1725725434622,-504.15478256,0.00014794,2]
[337505892,1725725434632,-500.0,0.00014794,2]
[337505893,1725725434641,-500.0,0.00014794,2]
[337505894,1725725434650,-500.0,0.00014794,2]
[337505895,1725725434659,-500.0,0.00014794,2]
[337505896,1725725434668,-500.0,0.00014794,2]
[337505897,1725725434678,-500.0,0.00014794,2]
[337505898,1725725434687,-500.0,0.00014794,2]
[337505899,1725725434696,-500.0,0.00014794,2]
[337505900,1725725434706,-469.44874679,0.00014794,2]
[337505901,1725725434715,-500.0,0.00014794,2]
[337505902,1725725434725,-500.0,0.00014794,2]
[337505903,1725725434734,-503.30958309,0.00014794,2]
[337505904,1725725434744,-500.0,0.00014794,2]
[337505905,1725725434755,-523.72663887,0.00014794,2]
[337505906,1725725434764,-500.0,0.00014794,2]
[337505907,1725725434774,-500.0,0.00014794,2]
[337505908,1725725434783,-500.0,0.00014794,2]
[337505909,1725725434792,-500.0,0.00014794,2]
[337505910,1725725434801,-500.0,0.00014794,2]
[337505911,1725725434810,-500.0,0.00014794,2]
[337505912,1725725434823,-500.0,0.00014794,2]
[337505913,1725725434832,-500.0,0.00014794,2]
[337505914,1725725434841,-500.0,0.00014794,2]
[337505915,1725725434850,-151.48,0.00014794,2]
[337505916,1725725434860,-500.0,0.00014794,2]
[337505917,1725725434869,-414.14997122,0.00014794,2]
[337505918,1725725434878,-500.0,0.00014794,2]
[337505919,1725725434887,-500.0,0.00014794,2]
[337505920,1725725434898,-500.0,0.00014794,2]
[337505921,1725725434908,-500.0,0.00014794,2]
[337505922,1725725434917,-500.0,0.00014794,2]
[337505923,1725725434927,-500.0,0.00014794,2]
[337505924,1725725434936,-500.0,0.00014794,2]
[337505925,1725725434945,-500.0,0.00014794,2]
[337505927,1725725434954,-500.0,0.00014794,2]
[337505928,1725725434963,-500.0,0.00014794,2]
[337505929,1725725434973,-228.28,0.00014794,2]
[337505931,1725725434981,-500.0,0.00014794,2]
[337505932,1725725434991,-500.0,0.00014794,2]
[337505933,1725725435000,-500.0,0.00014794,2]
[337505935,1725725435009,-500.0,0.00014794,2]
[337505936,1725725435019,-500.0,0.00014794,2]
[337505938,1725725435028,-500.0,0.00014794,2]
[337505939,1725725435039,-500.0,0.00014794,2]
[337505940,1725725435048,-500.0,0.00014794,2]
[337505942,1725725435057,-500.0,0.00014794,2]
[337505943,1725725435067,-500.0,0.00014794,2]
[337505944,1725725435076,-500.0,0.00014794,2]
[337505946,1725725435086,-500.0,0.00014794,2]
[337505947,1725725435096,-500.0,0.00014794,2]
[337505949,1725725435106,-500.0,0.00014794,2]
[337505950,1725725435116,-500.0,0.00014794,2]
[337505951,1725725435125,-543.11034895,0.00014794,2]
[337505953,1725725435136,-500.0,0.00014794,2]
[337505954,1725725435146,-599.34,0.00014794,2]
[337505955,1725725435155,-500.0,0.00014794,2]